fUSD/lending_fUSD_20250126
["ID","MTS","AMOUNT","RATE_DAILY","PERIOD"]
[350426054,1737870639323,-501.83524013,0.00010958,2]
[350426055,1737870639333,-500.0,0.00010958,2]
[350426056,1737870639342,-500.0,0.00010958,2]
[350426057,1737870639351,-500.0,0.00010958,2]
[350426058,1737870639360,-2019.35,0.00010958,2]
[350426059,1737870639370,-500.0,0.00010958,2]
[350426060,1737870639380,-500.0,0.00010958,2]
[350426061,1737870639389,-2019.35,0.00010958,2]
[350426062,1737870639398,-500.0,0.00010958,2]
[350426063,1737870639408,-500.0,0.00010958,2]
[350426064,1737870639417,-2019.35,0.00010958,2]
[350426065,1737870639426,-500.0,0.00010958,2]
[350426066,1737870639435,-500.0,0.00010958,2]
[350426067,1737870639444,-354.8879346,0.00010958,2]
[350426068,1737870639453,-1299.46,0.00010958,2]
[350426069,1737870639463,-1299.46,0.00010958,2]
[350426070,1737870639472,-1299.46,0.00010958,2]
[350426071,1737870639481,-500.0,0.00010958,2]
[350426072,1737870639491,-1299.46,0.00010958,2]
[350426073,1737870639500,-500.0,0.00010958,2]
[350426074,1737870639509,-1299.46,0.00010958,2]
[350426075,1737870639519,-500.0,0.00010958,2]
[350426076,1737870639528,-591.8,0.00010958,2]
[350426077,1737870639537,-591.8,0.00010958,2]
[350426078,1737870639546,-591.8,0.00010958,2]
[350426079,1737870639557,-500.0,0.00010958,2]
[350426080,1737870639566,-280.01428078,0.00010958,2]
[350426081,1737870639575,-500.0,0.00010958,2]
[350426082,1737870639584,-500.0,0.00010958,2]
[350426083,1737870639594,-500.0,0.00010958,2]
[350426084,1737870639603,-500.0,0.00010958,2]
[350426085,1737870639613,-500.0,0.00010958,2]
[350426086,1737870639622,-525.77607144,0.00010958,2]
[350426087,1737870639631,-500.0,0.00010958,2]
[350426089,1737870639640,-285.74552538,0.00010958,2]
[350426090,1737870639650,-500.0,0.00010958,2]
[350426091,1737870639659,-500.0,0.00010958,2]
[350426093,1737870639668,-500.0,0.00010958,2]
[350426094,1737870639677,-500.0,0.00010958,2]
[350426096,1737870639687,-500.0,0.00010958,2]
[350426097,1737870639696,-1169.46,0.00010958,2]
[350426098,1737870639705,-1169.46,0.00010958,2]
[350426099,1737870639714,-1169.46,0.00010958,2]
[350426100,1737870639723,-500.0,0.00010958,2]
[350426101,1737870639733,-501.24309276,0.00010958,2]
[350426102,1737870639743,-500.0,0.00010958,2]
[350426103,1737870639752,-509.93459213,0.00010958,2]
[350426104,1737870639762,-2370.69,0.00010958,2]
[350426105,1737870639771,-2370.69,0.00010958,2]
[350426106,1737870639780,-1836.05,0.00010958,2]
[350426107,1737870639789,-2370.69,0.00010958,2]
[350426108,1737870639798,-1836.05,0.00010958,2]
[350426109,1737870639808,-1836.05,0.00010958,2]
[350426110,1737870639817,-1836.05,0.00010958,2]
[350426111,1737870639826,-500.0,0.00010958,2]
[350426112,1737870639835,-1836.05,0.00010958,2]
[350426113,1737870639844,-500.0,0.00010958,2]
[350426114,1737870639853,-500.0,0.00010958,2]
[350426115,1737870639862,-500.0,0.00010958,2]
[350426116,1737870639872,-500.0,0.00010958,2]
[350426117,1737870639881,-500.0,0.00010958,2]
[350426118,1737870640059,-500.0,0.00010958,2]
[350426119,1737870640069,-500.0,0.00010958,2]
[350426120,1737870640078,-500.0,0.00010958,2]
[350426121,1737870640088,-500.0,0.00010958,2]
[350426122,1737870640098,-500.0,0.00010958,2]
[350426123,1737870640107,-500.0,0.00010958,2]
[350426124,1737870640117,-500.0,0.00010958,2]
[350426125,1737870640130,-500.0,0.00010958,2]
[350426126,1737870640140,-500.0,0.00010958,2]
[350426127,1737870640149,-500.0,0.00010958,2]
[350426128,1737870640159,-500.0,0.00010958,2]
[350426129,1737870640170,-472.23031941,0.00010958,2]
[350426130,1737870640179,-500.0,0.00010958,2]
[350426131,1737870640189,-500.0,0.00010958,2]
[350426132,1737870640198,-500.0,0.00010958,2]
[350426133,1737870640207,-1060.37,0.00010958,2]
[350426134,1737870640217,-500.0,0.00010958,2]
[350426135,1737870640226,-1060.37,0.00010958,2]
[350426136,1737870640235,-500.0,0.00010958,2]
[350426137,1737870640244,-1060.37,0.00010958,2]
[350426138,1737870640254,-1060.37,0.00010958,2]
[350426139,1737870640263,-500.0,0.00010958,2]
[350426140,1737870640272,-1060.37,0.00010958,2]
[350426141,1737870640282,-501.62742796,0.00010958,2]
[350426142,1737870640292,-500.0,0.00010958,2]
[350426143,1737870640302,-500.0,0.00010958,2]
[350426144,1737870640311,-500.0,0.00010958,2]
[350426145,1737870640320,-500.0,0.00010958,2]
[350426146,1737870640330,-500.0,0.00010958,2]
[350426147,1737870640339,-500.0,0.00010958,2]
[350426148,1737870640349,-500.0,0.00010958,2]
[350426149,1737870640359,-500.0,0.00010958,2]
[350426150,1737870640368,-500.0,0.00010958,2]
[350426151,1737870640377,-500.0,0.00010958,2]
[350426152,1737870640386,-500.0,0.00010958,2]
[350426153,1737870640396,-449.33638643,0.00010958,2]
[350426154,1737870640406,-500.0,0.00010958,2]
[350426155,1737870640416,-500.0,0.00010958,2]
[350426156,1737870640429,-1127.43,0.00010958,2]
[350426157,1737870640439,-500.0,0.00010958,2]
[350426158,1737870640449,-1127.43,0.00010958,2]
[350426159,1737870640459,-1127.43,0.00010958,2]
[350426160,1737870640468,-1038.59,0.00010958,2]
[350426161,1737870640477,-1038.59,0.00010958,2]
[350426162,1737870640487,-1038.59,0.00010958,2]
[350426163,1737870640496,-502.90395353,0.00010958,2]
[350426164,1737870640505,-500.0,0.00010958,2]
[350426165,1737870640515,-500.0,0.00010958,2]
[350426166,1737870640525,-500.0,0.00010958,2]
[350426167,1737870640534,-500.0,0.00010958,2]
[350426168,1737870640544,-500.0,0.00010958,2]
[350426169,1737870640554,-585.96,0.00010958,2]
[350426170,1737870640563,-585.96,0.00010958,2]
[350426171,1737870640573,-585.96,0.00010958,2]
[350426172,1737870640583,-935.99,0.00010958,2]
[350426173,1737870640592,-585.96,0.00010958,2]
[350426174,1737870640601,-935.99,0.00010958,2]
[350426175,1737870640611,-585.96,0.00010958,2]
[350426176,1737870640620,-935.99,0.00010958,2]
[350426177,1737870640630,-585.96,0.00010958,2]
[350426178,1737870640639,-1035.2,0.00010958,2]
[350426179,1737870640648,-1035.2,0.00010958,2]
[350426180,1737870640656,-1035.2,0.00010958,2]
[350426181,1737870640665,-1035.2,0.00010958,2]
[350426182,1737870640674,-501.59470787,0.00010958,2]
[350426183,1737870640684,-1035.2,0.00010958,2]
[350426184,1737870640693,-500.0,0.00010958,2]
[350426185,1737870640702,-1440.36,0.00010958,2]
[350426186,1737870640711,-500.0,0.00010958,2]
[350426187,1737870640720,-1440.36,0.00010958,2]
[350426188,1737870640729,-500.0,0.00010958,2]
[350426189,1737870640738,-500.0,0.00010958,2]
[350426190,1737870640748,-1440.36,0.00010958,2]
[350426191,1737870640757,-500.0,0.00010958,2]
[350426192,1737870640766,-500.0,0.00010958,2]
[350426193,1737870640775,-500.0,0.00010958,2]
[350426194,1737870640785,-500.0,0.00010958,2]
[350426195,1737870640794,-500.0,0.00010958,2]
[350426196,1737870640804,-500.0,0.00010958,2]
[350426197,1737870640813,-500.0,0.00010958,2]
[350426198,1737870640823,-500.0,0.00010958,2]
[350426199,1737870640831,-500.0,0.00010958,2]
[350426200,1737870640841,-511.13,0.00010958,2]
[350426201,1737870640850,-511.13,0.00010958,2]
[350426202,1737870640859,-462.52954043,0.00010958,2]
[350426203,1737870641037,-48.60045957,0.00010958,2]
[350426204,1737870641046,-500.0,0.00010958,2]
[350426205,1737870641055,-782.4,0.00010958,2]
[350426206,1737870641065,-500.0,0.00010958,2]
[350426207,1737870641074,-500.0,0.00010958,2]
[350426208,1737870641083,-500.0,0.00010958,2]
[350426209,1737870641093,-782.4,0.00010958,2]
[350426210,1737870641102,-500.0,0.00010958,2]
[350426211,1737870641111,-500.0,0.00010958,2]
[350426212,1737870641122,-782.4,0.00010958,2]
[350426213,1737870641133,-500.0,0.00010958,2]
[350426214,1737870641143,-500.0,0.00010958,2]
[350426215,1737870641151,-426.24907299,0.00010958,2]
[350426216,1737870641184,-73.75092701,0.00010958,2]
[350426217,1737870641193,-525.94101415,0.00010958,2]
[350426223,1737870643350,-256.45898585,0.00010958,2]
[350426224,1737870643360,-500.0,0.00010958,2]
[350426225,1737870643369,-500.0,0.00010958,2]
[350426226,1737870643379,-782.4,0.00010958,2]
[350426227,1737870643388,-500.0,0.00010958,2]
[350426228,1737870643397,-678.77,0.00010958,2]
[350426229,1737870643406,-678.77,0.00010958,2]
[350426230,1737870643416,-678.77,0.00010958,2]
[350426231,1737870643425,-500.0,0.00010958,2]
[350426232,1737870643434,-500.0,0.00010958,2]
[350426233,1737870643444,-307.89240837,0.00010958,2]
[350426234,1737870643453,-500.0,0.00010958,2]
[350426235,1737870643463,-500.0,0.00010958,2]
[350426236,1737870643472,-500.0,0.00010958,2]
[350426237,1737870643482,-905.76,0.00010958,2]
[350426238,1737870643491,-905.76,0.00010958,2]
[350426239,1737870643501,-975.76,0.00010958,2]
[350426240,1737870643511,-905.76,0.00010958,2]
[350426241,1737870643520,-500.0,0.00010958,2]
[350426242,1737870643529,-975.76,0.00010958,2]
[350426243,1737870643538,-502.34067718,0.00010958,2]
[350426244,1737870643548,-975.76,0.00010958,2]
[350426245,1737870643557,-1045.03,0.00010958,2]
[350426246,1737870643566,-1045.03,0.00010958,2]
[350426247,1737870643576,-500.0,0.00010958,2]
[350426248,1737870643585,-1045.03,0.00010958,2]
[350426249,1737870643595,-500.0,0.00010958,2]
[350426250,1737870643605,-439.93896352,0.00010958,2]
[350426251,1737870643624,-605.09103648,0.00010958,2]
[350426252,1737870643634,-500.0,0.00010958,2]
[350426253,1737870643643,-349.1551083,0.00010958,2]
[350426254,1737870643656,-150.8448917,0.00010958,2]
[350426255,1737870643665,-1045.03,0.00010958,2]
[350426256,1737870643675,-500.0,0.00010958,2]
[350426257,1737870643684,-324.53282493,0.00010958,2]
[350426258,1737870643812,-175.46717507,0.00010958,2]
[350426259,1737870643822,-500.0,0.00010958,2]
[350426260,1737870643831,-17.96993324,0.00010958,2]
[350426261,1737870643843,-490.4983098,0.00010958,2]
[350426262,1737870643852,-500.0,0.00010958,2]
[350426263,1737870643862,-500.0,0.00010958,2]
[350426264,1737870643872,-500.0,0.00010958,2]
[350426265,1737870643881,-500.0,0.00010958,2]
[350426266,1737870643891,-500.0,0.00010958,2]
[350426267,1737870643900,-500.0,0.00010958,2]
[350426268,1737870643909,-0.04412014,0.00010958,2]
[350426269,1737870643923,-499.95587986,0.00010958,2]
[350426270,1737870643932,-500.0,0.00010958,2]
[350426271,1737870643941,-500.0,0.00010958,2]
[350426272,1737870643950,-500.0,0.00010958,2]
[350426273,1737870643959,-500.0,0.00010958,2]
[350426274,1737870643968,-507.41573804,0.00010958,2]
[350426275,1737870643976,-500.0,0.00010958,2]
[350426276,1737870643986,-500.0,0.00010958,2]
[350426277,1737870643994,-500.0,0.00010958,2]
[350426278,1737870644003,-500.0,0.00010958,2]
[350426279,1737870644013,-500.0,0.00010958,2]
[350426280,1737870644022,-500.0,0.00010958,2]
[350426281,1737870644032,-500.0,0.00010958,2]
[350426282,1737870644041,-1288.32,0.00010958,2]
[350426283,1737870644051,-574.79550797,0.00010958,2]
[350426284,1737870644061,-1288.32,0.00010958,2]
[350426285,1737870644264,-1288.32,0.00010958,2]
[350426286,1737870644273,-500.0,0.00010958,2]
[350426287,1737870644282,-500.0,0.00010958,2]
[350426288,1737870644292,-500.0,0.00010958,2]
[350426289,1737870644302,-500.0,0.00010958,2]
[350426290,1737870644311,-500.0,0.00010958,2]
[350426291,1737870644321,-639.28478453,0.00010958,2]
[350426292,1737870644331,-1291.49,0.00010958,2]
[350426293,1737870644341,-1291.49,0.00010958,2]
[350426294,1737870644350,-500.0,0.00010958,2]
[350426295,1737870644360,-1291.49,0.00010958,2]
[350426296,1737870644370,-500.0,0.00010958,2]
[350426297,1737870644380,-500.0,0.00010958,2]
[350426298,1737870644390,-500.0,0.00010958,2]
[350426299,1737870644400,-500.0,0.00010958,2]
[350426300,1737870644410,-500.0,0.00010958,2]
[350426301,1737870644419,-568.94,0.00010958,2]
[350426302,1737870644429,-500.0,0.00010958,2]
[350426303,1737870644438,-568.94,0.00010958,2]
[350426304,1737870644447,-500.0,0.00010958,2]
[350426305,1737870644456,-500.0,0.00010958,2]
[350426306,1737870644466,-568.94,0.00010958,2]
[350426307,1737870644476,-500.0,0.00010958,2]
[350426308,1737870644484,-568.94,0.00010958,2]
[350426309,1737870644494,-500.0,0.00010958,2]
[350426310,1737870644503,-568.94,0.00010958,2]
[350426311,1737870644513,-568.94,0.00010958,2]
[350426312,1737870644523,-500.0,0.00010958,2]
[350426313,1737870644532,-500.0,0.00010958,2]
[350426314,1737870644541,-372.27012245,0.00010958,2]
[350426315,1737870644551,-500.0,0.00010958,2]
[350426316,1737870644561,-496.88580073,0.00010958,2]
[350426317,1737870644570,-765.26,0.00010958,2]
[350426318,1737870644580,-500.0,0.00010958,2]
[350426319,1737870644590,-500.0,0.00010958,2]
[350426320,1737870644599,-765.26,0.00010958,2]
[350426321,1737870644608,-502.04664629,0.00010958,2]
[350426322,1737870644618,-500.0,0.00010958,2]
[350426323,1737870644627,-736.28495514,0.00010958,2]
[350426324,1737870644703,-28.97504486,0.00010958,2]
[350426325,1737870644714,-364.73489723,0.00010958,2]
[350426326,1737870644723,-500.0,0.00010958,2]
[350426327,1737870644732,-216.05618044,0.00010958,2]
[350426328,1737870644752,-283.94381956,0.00010958,2]
[350426329,1737870644762,-500.0,0.00010958,2]
[350426330,1737870644771,-216.11379807,0.00010958,2]
[350426331,1737870645368,-283.88620193,0.00010958,2]
[350426332,1737870645378,-92.13210858,0.00010958,2]
[350426333,1737870645444,-407.86789142,0.00010958,2]
[350426334,1737870645453,-149.650539,0.00010958,2]
[350426335,1737870646012,-350.349461,0.00010958,2]
[350426336,1737870646022,-500.0,0.00010958,2]
[350426337,1737870646031,-1591.37,0.00010958,2]
[350426338,1737870646041,-1591.37,0.00010958,2]
[350426339,1737870646051,-1591.37,0.00010958,2]
[350426340,1737870646061,-500.0,0.00010958,2]
[350426341,1737870646070,-1186.46778687,0.00010958,2]
[350426342,1737870647110,-191.56221313,0.00010958,2]
[350426343,1737870647120,-430.03127411,0.00010958,2]
[350426344,1737870647134,-803.64278786,0.00010958,2]
[350426345,1737870647242,-434.22145291,0.00010958,2]
[350426346,1737870647266,-140.16575923,0.00010958,2]
[350426347,1737870647277,-1011.88,0.00010958,2]
[350426348,1737870647287,-1378.03,0.00010958,2]
[350426349,1737870647308,-1011.88,0.00010958,2]
[350426350,1737870647325,-1378.03,0.00010958,2]
[350426351,1737870647347,-1011.88,0.00010958,2]
[350426352,1737870647366,-234.13246814,0.00010958,2]
[350426353,1737870651218,505.19162869,0.00010958,7]
[350426356,1737870924473,151.0,0.00022,120]
[350426374,1737871113812,710.92,8.317e-05,2]
[350426377,1737871390972,292399.39,0.00010458,6]
[350426378,1737871400072,68410.1,0.00010457,6]
[350426380,1737871416027,2247.57,0.00010457,6]
[350426381,1737871429562,35107.05,0.00010357,6]
[350426382,1737871443674,11553.53,0.00010357,6]
[350426383,1737871458314,27190.14,0.00010357,6]
[350426384,1737871470417,25255.49,0.00010357,6]
[350426398,1737871826516,1340.4,8.1e-05,2]
[350426399,1737871826543,661.6,8.1e-05,2]
[350426400,1737871832218,-1202.43,9.933e-05,2]
[350426401,1737871832227,-1000.0,0.00010012,2]
[350426402,1737871832236,-300.0,0.00010026,2]
[350426403,1737871832246,-23900.0,0.00010027,2]
[350426404,1737871832255,-4326.48522051,0.00010076,2]
[350426405,1737871832264,-250.0,0.00010076,2]
[350426406,1737871832273,-373.27,0.000101,2]
[350426407,1737871832282,-252.42,0.00010137,2]
[350426408,1737871832291,-554.67,0.00010197,2]
[350426409,1737871832301,-295.95409882,0.00010197,2]
[350426410,1737871832310,-150.99,0.00010475,2]
[350426411,1737871832319,-9999.99,0.00010475,2]
[350426412,1737871832328,-250.0,0.00010477,2]
[350426414,1737871832337,-171.92,0.00010551,2]
[350426416,1737871832346,-150.0,0.0001058,2]
[350426418,1737871832355,-710.92,0.00010581,2]
[350426420,1737871832365,-773.77,0.000106,2]
[350426422,1737871832374,-438.87,0.000106,2]
[350426424,1737871832383,-438.87,0.000106,2]
[350426426,1737871832392,-773.77,0.000106,2]
[350426428,1737871832401,-773.77,0.000106,2]
[350426430,1737871832410,-438.87,0.000106,2]
[350426432,1737871832419,-773.77,0.000106,2]
[350426434,1737871832428,-2319.90736238,0.00010758,2]
[350426436,1737871832437,-2319.90736239,0.00010758,2]
[350426438,1737871832446,-1384.47,0.00010799,2]
[350426439,1737871832456,-51313.9820013,0.000108,3]
[350426441,1737871838636,-775.62000017,0.000108,3]
[350426442,1737871839972,-1133.05,0.000108,3]
[350426445,1737871843062,-1092.123,0.000108,3]
[350426446,1737871843073,-11004.95586047,0.000108,3]
[350426447,1737871843092,-406.560008,0.000108,3]
[350426448,1737871845830,-746.7814908,0.000108,3]
[350426449,1737871845892,-322.01352098,0.000108,3]
[350426450,1737871845953,-1785.28735792,0.000108,3]
[350426451,1737871845968,-2058.7914439,0.000108,3]
[350426452,1737871845979,-309.7224929,0.000108,3]
[350426453,1737871845991,-2218.7799645,0.000108,3]
[350426454,1737871846027,-8655.66699426,0.000108,3]
[350426459,1737872075551,689.04,8.338e-05,2]
[350426490,1737872760834,2110.0,0.00017123,24]
[350426491,1737872769696,398.0,0.00022,120]
[350426492,1737872786774,1001.79985552,0.00018022,55]
[350426512,1737872918965,150.0,0.0001052,5]
[350426513,1737872977432,654.58,8.219e-05,2]
[350426518,1737873032104,-289.13739247,9.969e-05,2]
[350426519,1737873032114,-150.0,9.999e-05,2]
[350426520,1737873032124,-541.29936897,0.0001,2]
[350426521,1737873032135,-6505.83410722,0.0001,2]
[350426522,1737873032145,-2006.86589278,0.0001,2]
[350426523,1737873032158,-1606.18785427,0.0001,2]
[350426524,1737873032260,-882.13467048,0.0001,2]
[350426525,1737873032346,-9760.27372064,0.0001,2]
[350426526,1737873032430,-6821.75786183,0.0001,2]
[350426527,1737873032439,-9166.24213814,0.0001,2]
[350426528,1737873032451,-1784.23263207,0.0001,2]
[350426874,1737873040219,-9530.00522979,0.0001,2]
[350426875,1737873040229,-250.0,0.00010069,2]
[350426876,1737873040238,-1500.0,0.00010095,2]
[350426877,1737873040248,-1000.0,0.00010096,2]
[350426878,1737873040257,-4047.85953096,0.00010115,2]
[350426879,1737873040290,-333.40046904,0.00010115,2]
[350426880,1737873040300,-163.33,0.00010137,2]
[350426881,1737873040309,-298.53,0.00010192,2]
[350426882,1737873040320,-250.0,0.00010383,2]
[350426883,1737873040558,-34.15601512,0.00010476,2]
[350426886,1737873040590,-620.42398488,0.00010476,2]
[350426887,1737873040601,-444.16,0.00010521,2]
[350426888,1737873040610,-236.41601412,0.00010521,2]
[350426891,1737873046210,-538.0266,0.00010115,2]
[350426892,1737873046220,-250.0,0.000102,2]
[350426893,1737873046229,-1072.15398588,0.00010521,2]
[350426894,1737873046238,-14314.80697962,0.00010521,2]
[350426895,1737873046250,-6579.97302038,0.00010521,2]
[350426896,1737873046260,-3000.0,0.0001069,2]
[350426897,1737873046269,-773.77,0.000107,2]
[350426898,1737873046279,-300.0,0.000107,2]
[350426899,1737873046288,-1985.3,0.000107,2]
[350426900,1737873046298,-2511.92626065,0.00010758,2]
[350426901,1737873046448,-581.08043935,0.00010758,2]
[350426902,1737873046458,-1279.076,0.00010799,2]
[350426903,1737873046467,-9166.33794865,0.000108,3]
[350426904,1737873046499,-7185.74675057,0.000108,3]
[350426905,1737873046530,-3355.70496985,0.000108,3]
[350426906,1737873046624,-3658.20953901,0.000108,3]
[350426919,1737873983884,635.27,8.219e-05,2]
[350426920,1737874031402,9006.858553,0.00017,25]
[350426931,1737874232497,-250.0,9.711e-05,2]
[350426932,1737874232507,-305.49,9.711e-05,2]
[350426933,1737874232516,-238.82,9.74e-05,2]
[350426934,1737874232526,-250.0,9.889e-05,2]
[350426935,1737874232535,-1000.0,9.942e-05,2]
[350426936,1737874232545,-1500.0,9.979e-05,2]
[350426937,1737874232554,-332.0,0.0001005,2]
[350426938,1737874232563,-352.63,0.00010137,2]
[350426939,1737874232573,-347.06,0.00010197,2]
[350426940,1737874232582,-150.0,0.00010247,2]
[350426941,1737874232593,-162.89,0.00010325,2]
[350426942,1737874232603,-171.92,0.00010451,2]
[350426943,1737874232612,-635.27,0.00010465,2]
[350426944,1737874232622,-332.0,0.000105,2]
[350426945,1737874232631,-1023.261,0.000105,2]
[350426946,1737874232642,-300.0,0.00010525,2]
[350426947,1737874232651,-32480.0,0.00010526,2]
[350426948,1737874232661,-500.0,0.00010603,2]
[350426949,1737874232671,-669.47883399,0.00010699,2]
[350426950,1737874232681,-150.0,0.00010699,2]
[350426951,1737874232691,-500.0,0.000107,2]
[350426952,1737874232701,-6431.2323,0.000107,2]
[350426953,1737874232711,-1312.4734276,0.00010738,2]
[350426954,1737874232721,-1000.0,0.00010748,2]
[350426955,1737874232730,-3000.0,0.00010799,2]
[350426956,1737874232739,-47073.84758312,0.000108,3]
[350426957,1737874232748,-118294.65865755,0.000108,2]
[350426986,1737874232995,-191.05128309,0.000108,2]
[350426988,1737874233005,-1022.32003544,0.00010841,2]
[350426990,1737874233014,-164.29648912,0.00010858,2]
[350426992,1737874233024,-5003.7405,0.00010858,2]
[350426994,1737874233033,-5056.0269,0.00010858,2]
[350426996,1737874233042,-5000.0,0.00010858,2]
[350426998,1737874233052,-8569.54285931,0.0001087,2]
[350427000,1737874233061,-332.0,0.0001094,2]
[350427002,1737874233071,-219.32641021,0.00010948,2]
[350427004,1737874233080,-322.34842847,0.0001095,2]
[350427006,1737874233089,-500.0,0.00010957,2]
[350427008,1737874233099,-176.26285101,0.00010957,2]
[350427010,1737874233107,-238.82,0.00010958,2]
[350427012,1737874233116,-1701.295725,0.00010958,2]
[350427014,1737874233125,-1701.295725,0.00010958,2]
[350427016,1737874233134,-1701.295725,0.00010958,2]
[350427018,1737874233143,-1701.295725,0.00010958,2]
[350427020,1737874233152,-1701.295725,0.00010958,2]
[350427021,1737874233161,-1701.295725,0.00010958,2]
[350427023,1737874233170,-1701.295725,0.00010958,2]
[350427025,1737874233179,-1701.295725,0.00010958,2]
[350427027,1737874233188,-1701.295725,0.00010958,2]
[350427029,1737874233197,-1701.295725,0.00010958,2]
[350427031,1737874233206,-153.250626,0.00010958,2]
[350427033,1737874233215,-153.250626,0.00010958,2]
[350427035,1737874233224,-153.250626,0.00010958,2]
[350427037,1737874233233,-1701.295725,0.00010958,2]
[350427039,1737874233243,-153.250626,0.00010958,2]
[350427041,1737874233253,-1701.295725,0.00010958,2]
[350427043,1737874233262,-153.250626,0.00010958,2]
[350427045,1737874233271,-1701.295725,0.00010958,2]
[350427047,1737874233279,-1701.295725,0.00010958,2]
[350427049,1737874233288,-1701.295725,0.00010958,2]
[350427051,1737874233297,-153.250626,0.00010958,2]
[350427053,1737874233307,-1701.295725,0.00010958,2]
[350427055,1737874233316,-153.250626,0.00010958,2]
[350427057,1737874233325,-1701.295725,0.00010958,2]
[350427059,1737874233334,-153.250626,0.00010958,2]
[350427061,1737874233344,-1701.295725,0.00010958,2]
[350427063,1737874233353,-153.250626,0.00010958,2]
[350427065,1737874233362,-1701.295725,0.00010958,2]
[350427067,1737874233372,-153.250626,0.00010958,2]
[350427069,1737874233382,-153.250626,0.00010958,2]
[350427071,1737874233391,-1701.295725,0.00010958,2]
[350427072,1737874233400,-153.250626,0.00010958,2]
[350427074,1737874233410,-1701.295725,0.00010958,2]
[350427075,1737874233419,-150.734586,0.00010958,2]
[350427076,1737874233429,-153.250626,0.00010958,2]
[350427077,1737874233438,-1701.295725,0.00010958,2]
[350427078,1737874233448,-150.734586,0.00010958,2]
[350427079,1737874233459,-1701.295725,0.00010958,2]
[350427080,1737874233469,-150.734586,0.00010958,2]
[350427081,1737874233479,-1701.295725,0.00010958,2]
[350427082,1737874233489,-153.250626,0.00010958,2]
[350427083,1737874233499,-150.734586,0.00010958,2]
[350427084,1737874233509,-153.250626,0.00010958,2]
[350427085,1737874233519,-150.734586,0.00010958,2]
[350427086,1737874233528,-153.250626,0.00010958,2]
[350427087,1737874233538,-150.734586,0.00010958,2]
[350427088,1737874233548,-153.250626,0.00010958,2]
[350427089,1737874233560,-150.734586,0.00010958,2]
[350427090,1737874233570,-153.250626,0.00010958,2]
[350427091,1737874233579,-150.734586,0.00010958,2]
[350427092,1737874233589,-150.734586,0.00010958,2]
[350427093,1737874233601,-153.250626,0.00010958,2]
[350427094,1737874233610,-150.734586,0.00010958,2]
[350427095,1737874233619,-153.250626,0.00010958,2]
[350427096,1737874233629,-150.734586,0.00010958,2]
[350427097,1737874233640,-153.250626,0.00010958,2]
[350427098,1737874233649,-153.250626,0.00010958,2]
[350427099,1737874233659,-150.734586,0.00010958,2]
[350427100,1737874233668,-150.734586,0.00010958,2]
[350427101,1737874233680,-153.250626,0.00010958,2]
[350427102,1737874233690,-153.250626,0.00010958,2]
[350427103,1737874233699,-150.734586,0.00010958,2]
[350427104,1737874233709,-150.734586,0.00010958,2]
[350427105,1737874233719,-150.734586,0.00010958,2]
[350427106,1737874233729,-150.734586,0.00010958,2]
[350427107,1737874233738,-150.734586,0.00010958,2]
[350427108,1737874233748,-2433.275543,0.00010958,2]
[350427109,1737874233757,-2433.275543,0.00010958,2]
[350427110,1737874233767,-2433.275543,0.00010958,2]
[350427111,1737874233777,-2433.275543,0.00010958,2]